[Event "Late-Titled-Tuesday-Blitz-April-02-2024"]
[Site "Chess.com"]
[Date "2024.04.02"]
[Round "8"]
[White "Onthequiet"]
[Black "rhwr"]
[Result "1-0"]
[WhiteElo "2432"]
[BlackElo "2290"]
[TimeControl "180+1"]
[EndTime "15:25:05 PDT"]
[Termination "Onthequiet won on time"]

1. d4 {[%clk 0:03:00]} 1... c5 {[%clk 0:03:00.1]} 2. e3 {[%clk 0:02:59.5]} 2...
d5 {[%clk 0:02:58.8]} 3. Nf3 {[%clk 0:02:59.1]} 3... Nc6 {[%clk 0:02:59.4]} 4.
h3 {[%clk 0:02:58.7]} 4... Nf6 {[%clk 0:02:58.8]} 5. a3 {[%clk 0:02:58.5]} 5...
e6 {[%clk 0:02:58]} 6. dxc5 {[%clk 0:02:58.7]} 6... Bxc5 {[%clk 0:02:58]} 7. b4
{[%clk 0:02:59]} 7... Be7 {[%clk 0:02:58.1]} 8. Bb2 {[%clk 0:02:59.5]} 8... O-O
{[%clk 0:02:57.8]} 9. Nbd2 {[%clk 0:02:59.4]} 9... a6 {[%clk 0:02:56.6]} 10. c4
{[%clk 0:02:58.7]} 10... dxc4 {[%clk 0:02:55.2]} 11. Bxc4 {[%clk 0:02:59.6]}
11... b5 {[%clk 0:02:49.7]} 12. Ba2 {[%clk 0:02:58.9]} 12... Bb7 {[%clk
0:02:49.9]} 13. Qe2 {[%clk 0:02:58.7]} 13... Rc8 {[%clk 0:02:39.2]} 14. O-O
{[%clk 0:02:58.5]} 14... Qb6 {[%clk 0:02:35.4]} 15. Ng5 {[%clk 0:02:45.5]} 15...
h6 {[%clk 0:02:19.2]} 16. Nge4 {[%clk 0:02:40.2]} 16... Nxe4 {[%clk 0:02:15.5]}
17. Nxe4 {[%clk 0:02:41.1]} 17... Nxb4 {[%clk 0:02:00.8]} 18. Qg4 {[%clk
0:02:41]} 18... g6 {[%clk 0:01:15.4]} 19. axb4 {[%clk 0:02:36.4]} 19... Kh7
{[%clk 0:01:11.8]} 20. Nf6+ {[%clk 0:02:26.8]} 20... Bxf6 {[%clk 0:01:11.1]} 21.
Bxf6 {[%clk 0:02:27.7]} 21... Rc2 {[%clk 0:00:47.7]} 22. Bb1 {[%clk 0:02:20.7]}
22... Rc4 {[%clk 0:00:45.5]} 23. Qg3 {[%clk 0:02:14.4]} 23... Rfc8 {[%clk
0:00:40]} 24. Be7 {[%clk 0:02:08.9]} 24... Qc6 {[%clk 0:00:33.4]} 25. Bc5 {[%clk
0:01:55.6]} 25... h5 {[%clk 0:00:28.3]} 26. Bd3 {[%clk 0:01:46.4]} 26... Rc3
{[%clk 0:00:15.5]} 27. Be2 {[%clk 0:01:42.9]} 27... Qd5 {[%clk 0:00:07.3]} 28.
Bf3 {[%clk 0:01:40.8]} 28... Qd7 {[%clk 0:00:05.4]} 29. Bxb7 {[%clk 0:01:40.7]}
29... Qxb7 {[%clk 0:00:06.3]} 30. Qf3 {[%clk 0:01:41.2]} 30... Rc6 {[%clk
0:00:05.1]} 31. Rfd1 {[%clk 0:01:36.6]} 31... a5 {[%clk 0:00:03.9]} 32. Rd6
{[%clk 0:01:35.1]} 1-0

[Event "Late-Titled-Tuesday-Blitz-April-02-2024"]
[Site "Chess.com"]
[Date "2024.04.02"]
[Round "8"]
[White "CatLoverPL"]
[Black "egnfanclub"]
[Result "0-1"]
[WhiteElo "2481"]
[BlackElo "2381"]
[TimeControl "180+1"]
[EndTime "15:25:18 PDT"]
[Termination "egnfanclub won by resignation"]

1. g3 {[%clk 0:02:34.6]} 1... Nf6 {[%clk 0:02:59.1]} 2. Bg2 {[%clk 0:02:35.2]}
2... c5 {[%clk 0:02:59.5]} 3. c4 {[%clk 0:02:35.6]} 3... Nc6 {[%clk 0:02:59.9]}
4. Nf3 {[%clk 0:02:36.1]} 4... d5 {[%clk 0:03:00.1]} 5. cxd5 {[%clk 0:02:35.4]}
5... Nxd5 {[%clk 0:03:00.4]} 6. Nc3 {[%clk 0:02:36.1]} 6... Nc7 {[%clk
0:03:00.8]} 7. O-O {[%clk 0:02:35.9]} 7... e5 {[%clk 0:03:01.4]} 8. d3 {[%clk
0:02:36.2]} 8... Be7 {[%clk 0:03:01.8]} 9. Be3 {[%clk 0:02:36.2]} 9... O-O
{[%clk 0:02:53.9]} 10. a4 {[%clk 0:02:35.5]} 10... b6 {[%clk 0:02:49.3]} 11. Nd2
{[%clk 0:02:35.4]} 11... Bd7 {[%clk 0:02:41]} 12. Nc4 {[%clk 0:02:35.2]} 12...
f6 {[%clk 0:02:40.4]} 13. a5 {[%clk 0:02:34.9]} 13... b5 {[%clk 0:02:32.7]} 14.
Nd2 {[%clk 0:02:34.6]} 14... Rb8 {[%clk 0:02:19.2]} 15. Nd5 {[%clk 0:02:26.8]}
15... Nxd5 {[%clk 0:02:12.6]} 16. Bxd5+ {[%clk 0:02:27.7]} 16... Kh8 {[%clk
0:02:13.2]} 17. a6 {[%clk 0:02:26.4]} 17... Nd4 {[%clk 0:02:07.4]} 18. Bxd4
{[%clk 0:02:24.5]} 18... exd4 {[%clk 0:02:03.5]} 19. Bf3 {[%clk 0:02:21.4]}
19... Rb6 {[%clk 0:01:47.7]} 20. Re1 {[%clk 0:02:17]} 20... Bc8 {[%clk
0:01:47.8]} 21. Bb7 {[%clk 0:02:11.8]} 21... Bxb7 {[%clk 0:01:46.8]} 22. axb7
{[%clk 0:02:12.7]} 22... Rxb7 {[%clk 0:01:47.7]} 23. Qb3 {[%clk 0:02:10]} 23...
a5 {[%clk 0:01:38.2]} 24. Nf3 {[%clk 0:02:05.5]} 24... a4 {[%clk 0:01:38.6]} 25.
Qc2 {[%clk 0:02:05.4]} 25... Qd5 {[%clk 0:01:34.3]} 26. h4 {[%clk 0:02:03.6]}
26... h5 {[%clk 0:01:33.1]} 27. Qd2 {[%clk 0:02:00.4]} 27... Rd8 {[%clk
0:01:31.7]} 28. e4 {[%clk 0:01:59.8]} 28... dxe3 {[%clk 0:01:31.4]} 29. Rxe3
{[%clk 0:02:00.1]} 29... c4 {[%clk 0:01:26.5]} 30. d4 {[%clk 0:01:59.8]} 30...
Bf8 {[%clk 0:00:50.9]} 31. Rae1 {[%clk 0:01:58.1]} 31... b4 {[%clk 0:00:45.4]}
32. Qc2 {[%clk 0:01:53.6]} 32... a3 {[%clk 0:00:38]} 33. bxa3 {[%clk 0:01:51.2]}
33... b3 {[%clk 0:00:38.1]} 34. Qg6 {[%clk 0:01:50.4]} 34... b2 {[%clk
0:00:32.8]} 35. Re8 {[%clk 0:01:49.4]} 35... Rxe8 {[%clk 0:00:26.1]} 36. Rxe8
{[%clk 0:01:48.9]} 36... Kg8 {[%clk 0:00:26.3]} 37. Re1 {[%clk 0:01:44.7]} 37...
Qf7 {[%clk 0:00:25.2]} 38. Qc2 {[%clk 0:01:42.1]} 38... c3 {[%clk 0:00:24]} 39.
Qe4 {[%clk 0:01:32.8]} 39... Qb3 {[%clk 0:00:21.2]} 0-1

[Event "Late-Titled-Tuesday-Blitz-April-02-2024"]
[Site "Chess.com"]
[Date "2024.04.02"]
[Round "8"]
[White "mishanick"]
[Black "Angry_Twin"]
[Result "1-0"]
[WhiteElo "3052"]
[BlackElo "2931"]
[TimeControl "180+1"]
[EndTime "15:25:21 PDT"]
[Termination "mishanick won by resignation"]

1. d4 {[%clk 0:03:00.9]} 1... Nf6 {[%clk 0:02:59.9]} 2. c4 {[%clk 0:03:00.3]}
2... e6 {[%clk 0:02:59.8]} 3. Nc3 {[%clk 0:03:00.3]} 3... Bb4 {[%clk 0:02:59.8]}
4. e3 {[%clk 0:03:00.8]} 4... O-O {[%clk 0:02:57.4]} 5. Bd3 {[%clk 0:03:01.5]}
5... d5 {[%clk 0:02:55.1]} 6. Nf3 {[%clk 0:03:02]} 6... dxc4 {[%clk 0:02:47.4]}
7. Bxc4 {[%clk 0:03:02.9]} 7... b6 {[%clk 0:02:47.7]} 8. a3 {[%clk 0:03:02.1]}
8... Bxc3+ {[%clk 0:02:47.1]} 9. bxc3 {[%clk 0:03:03]} 9... c5 {[%clk
0:02:47.3]} 10. O-O {[%clk 0:03:02.5]} 10... Qc7 {[%clk 0:02:46.6]} 11. Qe2
{[%clk 0:02:49]} 11... Bb7 {[%clk 0:02:46.2]} 12. Nd2 {[%clk 0:02:49.5]} 12...
Rd8 {[%clk 0:02:39.5]} 13. Bb2 {[%clk 0:02:42.8]} 13... Nc6 {[%clk 0:02:39.3]}
14. f4 {[%clk 0:02:29.4]} 14... Na5 {[%clk 0:02:30.6]} 15. Bd3 {[%clk
0:02:29.6]} 15... Rac8 {[%clk 0:02:24]} 16. e4 {[%clk 0:02:23.1]} 16... cxd4
{[%clk 0:01:36.4]} 17. cxd4 {[%clk 0:02:24]} 17... Nc6 {[%clk 0:01:36.4]} 18.
Rac1 {[%clk 0:02:10.5]} 18... Nxd4 {[%clk 0:01:22.7]} 19. Bxd4 {[%clk
0:01:25.8]} 19... Qxc1 {[%clk 0:01:22.3]} 20. Rxc1 {[%clk 0:01:26.7]} 20...
Rxc1+ {[%clk 0:01:22.7]} 21. Nf1 {[%clk 0:01:27.5]} 21... Rxd4 {[%clk
0:00:53.1]} 22. Qe3 {[%clk 0:01:27.6]} 22... Rdc4 {[%clk 0:00:42.3]} 23. Bxc4
{[%clk 0:01:21.6]} 23... Rxc4 {[%clk 0:00:43.2]} 24. Qd3 {[%clk 0:01:21.8]}
24... Rc8 {[%clk 0:00:41.4]} 25. Ng3 {[%clk 0:01:19.1]} 25... h6 {[%clk
0:00:41.1]} 26. h3 {[%clk 0:01:19.4]} 26... Kf8 {[%clk 0:00:35.7]} 27. Qd6+
{[%clk 0:01:18.8]} 27... Ke8 {[%clk 0:00:34.6]} 28. Qd4 {[%clk 0:01:18.9]} 28...
Bc6 {[%clk 0:00:29.2]} 29. f5 {[%clk 0:01:17.6]} 29... Rd8 {[%clk 0:00:28.8]}
30. Qc4 {[%clk 0:01:15.6]} 30... Bd7 {[%clk 0:00:29.3]} 31. e5 {[%clk
0:01:13.5]} 31... Nd5 {[%clk 0:00:29.4]} 32. Nh5 {[%clk 0:01:10.3]} 32... Ne3
{[%clk 0:00:13.6]} 33. Nxg7+ {[%clk 0:01:09.1]} 33... Kf8 {[%clk 0:00:14.5]} 34.
Qc7 {[%clk 0:01:07.1]} 1-0

[Event "Late-Titled-Tuesday-Blitz-April-02-2024"]
[Site "Chess.com"]
[Date "2024.04.02"]
[Round "8"]
[White "JaackCamel"]
[Black "dennisodessa"]
[Result "0-1"]
[WhiteElo "2207"]
[BlackElo "2548"]
[TimeControl "180+1"]
[EndTime "15:25:23 PDT"]
[Termination "dennisodessa won on time"]

1. d4 {[%clk 0:03:00.9]} 1... Nf6 {[%clk 0:02:57.2]} 2. c4 {[%clk 0:03:00.2]}
2... e6 {[%clk 0:02:57.7]} 3. Nc3 {[%clk 0:02:59.6]} 3... Bb4 {[%clk 0:02:58.4]}
4. Qc2 {[%clk 0:02:59.2]} 4... Nc6 {[%clk 0:02:58.1]} 5. Nf3 {[%clk 0:02:51.6]}
5... d6 {[%clk 0:02:58.6]} 6. Bg5 {[%clk 0:02:47.2]} 6... h6 {[%clk 0:02:58]} 7.
Bh4 {[%clk 0:02:43.7]} 7... g5 {[%clk 0:02:57.7]} 8. Bg3 {[%clk 0:02:43.5]} 8...
g4 {[%clk 0:02:57.7]} 9. Nd2 {[%clk 0:02:35.4]} 9... Nxd4 {[%clk 0:02:57.2]} 10.
Qa4+ {[%clk 0:02:30.2]} 10... Bd7 {[%clk 0:02:56]} 11. Qd1 {[%clk 0:02:24.9]}
11... Nh5 {[%clk 0:02:47.5]} 12. e3 {[%clk 0:02:17.7]} 12... Nxg3 {[%clk
0:02:34]} 13. hxg3 {[%clk 0:02:12]} 13... Nf5 {[%clk 0:02:34.1]} 14. Qxg4 {[%clk
0:02:06.4]} 14... Bxc3 {[%clk 0:02:34.2]} 15. bxc3 {[%clk 0:02:05.9]} 15... Qf6
{[%clk 0:02:35.1]} 16. Rc1 {[%clk 0:01:23.7]} 16... O-O-O {[%clk 0:02:29.9]} 17.
e4 {[%clk 0:01:23.2]} 17... Ne7 {[%clk 0:02:20.1]} 18. c5 {[%clk 0:01:19.4]}
18... dxc5 {[%clk 0:02:17.6]} 19. Be2 {[%clk 0:00:56.1]} 19... Bc6 {[%clk
0:02:10.1]} 20. Bf3 {[%clk 0:00:43]} 20... Ng6 {[%clk 0:02:04.4]} 21. Nc4 {[%clk
0:00:37.3]} 21... Bb5 {[%clk 0:01:59.7]} 22. Be2 {[%clk 0:00:19.7]} 22... h5
{[%clk 0:01:17.1]} 23. Rxh5 {[%clk 0:00:14.3]} 23... Bxc4 {[%clk 0:01:17.3]} 24.
Bxc4 {[%clk 0:00:12.2]} 24... Ne5 {[%clk 0:01:17.8]} 25. Rxe5 {[%clk 0:00:07.1]}
25... Rh1+ {[%clk 0:01:09]} 26. Ke2 {[%clk 0:00:06.7]} 26... Rxc1 {[%clk
0:01:09.6]} 27. Qf4 {[%clk 0:00:03.5]} 27... Qxf4 {[%clk 0:01:08.5]} 28. gxf4
{[%clk 0:00:03.3]} 28... Rxc3 {[%clk 0:01:09.4]} 29. Bb3 {[%clk 0:00:01.8]}
29... c4 {[%clk 0:01:05.7]} 0-1

[Event "Late-Titled-Tuesday-Blitz-April-02-2024"]
[Site "Chess.com"]
[Date "2024.04.02"]
[Round "8"]
[White "Cluke86"]
[Black "rdarruda"]
[Result "0-1"]
[WhiteElo "2326"]
[BlackElo "2481"]
[TimeControl "180+1"]
[EndTime "15:25:29 PDT"]
[Termination "rdarruda won by checkmate"]

1. e4 {[%clk 0:03:00.9]} 1... c5 {[%clk 0:02:59.3]} 2. Nc3 {[%clk 0:02:59.5]}
2... e6 {[%clk 0:02:58.3]} 3. Nge2 {[%clk 0:02:58.5]} 3... d6 {[%clk 0:02:58.7]}
4. g3 {[%clk 0:02:52.6]} 4... Nf6 {[%clk 0:02:58.9]} 5. Bg2 {[%clk 0:02:52.8]}
5... Nc6 {[%clk 0:02:58.9]} 6. O-O {[%clk 0:02:52.3]} 6... Be7 {[%clk
0:02:59.2]} 7. f4 {[%clk 0:02:51.1]} 7... O-O {[%clk 0:02:57.6]} 8. d3 {[%clk
0:02:49.3]} 8... Qc7 {[%clk 0:02:55.7]} 9. h3 {[%clk 0:02:47.6]} 9... Bd7 {[%clk
0:02:54.1]} 10. g4 {[%clk 0:02:47.5]} 10... Nd4 {[%clk 0:02:50.2]} 11. Ng3
{[%clk 0:02:46.6]} 11... Bc6 {[%clk 0:02:48.6]} 12. g5 {[%clk 0:02:45.5]} 12...
Nd7 {[%clk 0:02:48.7]} 13. h4 {[%clk 0:02:39.9]} 13... f5 {[%clk 0:02:46.1]} 14.
exf5 {[%clk 0:02:25.9]} 14... Nxf5 {[%clk 0:02:44.4]} 15. Qg4 {[%clk 0:02:16.9]}
15... Bxg2 {[%clk 0:02:38.1]} 16. Kxg2 {[%clk 0:02:17.8]} 16... g6 {[%clk
0:02:35.2]} 17. Bd2 {[%clk 0:02:11.9]} 17... Qc6+ {[%clk 0:02:33.2]} 18. Kh3
{[%clk 0:02:04.1]} 18... c4 {[%clk 0:02:31.3]} 19. Rae1 {[%clk 0:01:57.3]} 19...
cxd3 {[%clk 0:02:10.6]} 20. cxd3 {[%clk 0:01:55.4]} 20... d5 {[%clk 0:02:10.4]}
21. h5 {[%clk 0:01:50.2]} 21... Nc5 {[%clk 0:02:07.4]} 22. Qe2 {[%clk
0:01:40.8]} 22... Rae8 {[%clk 0:01:47.3]} 23. h6 {[%clk 0:01:32.6]} 23... Bd6
{[%clk 0:01:44.5]} 24. Rc1 {[%clk 0:01:15.5]} 24... Qd7 {[%clk 0:01:43.9]} 25.
Rf3 {[%clk 0:01:11.6]} 25... e5 {[%clk 0:01:39.4]} 26. Qf2 {[%clk 0:00:54.4]}
26... e4 {[%clk 0:01:23.7]} 27. dxe4 {[%clk 0:00:41.2]} 27... dxe4 {[%clk
0:01:23.1]} 28. Ngxe4 {[%clk 0:00:40]} 28... Nxe4 {[%clk 0:01:22.7]} 29. Nxe4
{[%clk 0:00:36.4]} 29... Rxe4 {[%clk 0:01:23.6]} 30. Kg2 {[%clk 0:00:32.8]}
30... Rfe8 {[%clk 0:01:23]} 31. Bc3 {[%clk 0:00:27.8]} 31... Re2 {[%clk
0:01:20.9]} 32. Rd1 {[%clk 0:00:19]} 32... Rxf2+ {[%clk 0:01:16.3]} 33. Rxf2
{[%clk 0:00:19.9]} 33... Qc6+ {[%clk 0:01:15.8]} 34. Kh2 {[%clk 0:00:14.9]}
34... Bxf4+ {[%clk 0:01:06.3]} 35. Rxf4 {[%clk 0:00:10.8]} 35... Re2+ {[%clk
0:01:06.2]} 36. Kh3 {[%clk 0:00:04.6]} 36... Qg2# {[%clk 0:01:05.9]} 0-1

[Event "Late-Titled-Tuesday-Blitz-April-02-2024"]
[Site "Chess.com"]
[Date "2024.04.02"]
[Round "8"]
[White "arturdailima"]
[Black "N_Mullodzhanov"]
[Result "0-1"]
[WhiteElo "2388"]
[BlackElo "2548"]
[TimeControl "180+1"]
[EndTime "15:25:36 PDT"]
[Termination "N_Mullodzhanov won by resignation"]

1. Nf3 {[%clk 0:02:42.8]} 1... d5 {[%clk 0:02:59.6]} 2. c4 {[%clk 0:02:42]} 2...
c6 {[%clk 0:02:56.1]} 3. e3 {[%clk 0:02:41.8]} 3... Nf6 {[%clk 0:02:55.9]} 4.
Nc3 {[%clk 0:02:42.1]} 4... g6 {[%clk 0:02:53.9]} 5. b3 {[%clk 0:02:40.6]} 5...
Bg7 {[%clk 0:02:53.8]} 6. Bb2 {[%clk 0:02:41.1]} 6... O-O {[%clk 0:02:54.2]} 7.
Be2 {[%clk 0:02:41.7]} 7... Re8 {[%clk 0:02:53.3]} 8. O-O {[%clk 0:02:42.3]}
8... e5 {[%clk 0:02:53.6]} 9. d3 {[%clk 0:02:36.4]} 9... Nbd7 {[%clk 0:02:49.7]}
10. Qc2 {[%clk 0:02:35.9]} 10... Nc5 {[%clk 0:02:43.1]} 11. b4 {[%clk
0:02:25.1]} 11... Ncd7 {[%clk 0:02:41.4]} 12. e4 {[%clk 0:02:24.5]} 12... d4
{[%clk 0:02:40.1]} 13. Nb1 {[%clk 0:02:22.6]} 13... a5 {[%clk 0:02:40]} 14. a3
{[%clk 0:02:20.6]} 14... axb4 {[%clk 0:02:36.3]} 15. axb4 {[%clk 0:02:21.5]}
15... Rxa1 {[%clk 0:02:36.4]} 16. Bxa1 {[%clk 0:02:22.4]} 16... Qb6 {[%clk
0:02:35.8]} 17. Qb3 {[%clk 0:02:19.9]} 17... Nc5 {[%clk 0:02:25.1]} 18. Qa3
{[%clk 0:02:17.2]} 18... Na6 {[%clk 0:02:23]} 19. b5 {[%clk 0:02:14.3]} 19...
cxb5 {[%clk 0:02:22.1]} 20. cxb5 {[%clk 0:02:15.2]} 20... Qxb5 {[%clk
0:02:22.4]} 21. Nbd2 {[%clk 0:02:15.9]} 21... Qc5 {[%clk 0:02:19]} 22. Qb2
{[%clk 0:02:08.4]} 22... Qb4 {[%clk 0:02:15.8]} 23. Qc2 {[%clk 0:02:06]} 23...
Bd7 {[%clk 0:02:10.6]} 24. Rb1 {[%clk 0:02:03.4]} 24... Qa5 {[%clk 0:02:08]} 25.
Nc4 {[%clk 0:01:59.2]} 25... Qc7 {[%clk 0:02:03.7]} 26. Qa2 {[%clk 0:01:50.9]}
26... Be6 {[%clk 0:01:58.7]} 27. Bb2 {[%clk 0:01:47.7]} 27... Nd7 {[%clk
0:01:55.4]} 28. Ba3 {[%clk 0:01:42.3]} 28... Nac5 {[%clk 0:01:47.7]} 29. Qc2
{[%clk 0:01:38.4]} 29... Ra8 {[%clk 0:01:41.1]} 30. Bb4 {[%clk 0:01:38.2]} 30...
h6 {[%clk 0:01:29.8]} 31. h3 {[%clk 0:01:37.8]} 31... Kh7 {[%clk 0:01:29.6]} 32.
Rc1 {[%clk 0:01:34.5]} 32... Rc8 {[%clk 0:01:25.2]} 33. Qd1 {[%clk 0:01:18.6]}
33... Bf8 {[%clk 0:01:10.5]} 34. Qc2 {[%clk 0:00:57.6]} 34... Nxd3 {[%clk
0:00:41.1]} 35. Bxd3 {[%clk 0:00:52.8]} 35... Bxb4 {[%clk 0:00:40.4]} 36. Qb3
{[%clk 0:00:53.4]} 36... Bf8 {[%clk 0:00:34.9]} 37. Rc2 {[%clk 0:00:54]} 37...
Nc5 {[%clk 0:00:32.8]} 38. Qa3 {[%clk 0:00:52.8]} 38... Nxd3 {[%clk 0:00:31.7]}
39. Qxd3 {[%clk 0:00:53.7]} 39... Bxc4 {[%clk 0:00:30.9]} 0-1

[Event "Late-Titled-Tuesday-Blitz-April-02-2024"]
[Site "Chess.com"]
[Date "2024.04.02"]
[Round "8"]
[White "GaiozNigalidze"]
[Black "FairChess_on_YouTube"]
[Result "0-1"]
[WhiteElo "2725"]
[BlackElo "3044"]
[TimeControl "180+1"]
[EndTime "15:25:39 PDT"]
[Termination "FairChess_on_YouTube won by resignation"]

1. e4 {[%clk 0:03:00.9]} 1... c5 {[%clk 0:02:59.6]} 2. Nf3 {[%clk 0:03:00.4]}
2... Nc6 {[%clk 0:02:59.7]} 3. Bb5 {[%clk 0:03:00.8]} 3... Nf6 {[%clk
0:02:59.2]} 4. Nc3 {[%clk 0:02:56.7]} 4... g6 {[%clk 0:02:58.8]} 5. O-O {[%clk
0:02:56]} 5... Bg7 {[%clk 0:02:58.7]} 6. Bxc6 {[%clk 0:02:52.2]} 6... dxc6
{[%clk 0:02:59]} 7. d3 {[%clk 0:02:52.8]} 7... Bg4 {[%clk 0:02:59.1]} 8. h3
{[%clk 0:02:51.5]} 8... Bxf3 {[%clk 0:02:59.3]} 9. Qxf3 {[%clk 0:02:51.5]} 9...
Nd7 {[%clk 0:03:00.2]} 10. Be3 {[%clk 0:02:43.4]} 10... O-O {[%clk 0:02:59.3]}
11. Qe2 {[%clk 0:02:42]} 11... e5 {[%clk 0:02:58.9]} 12. Kh1 {[%clk 0:02:40.2]}
12... Re8 {[%clk 0:02:57.8]} 13. Rae1 {[%clk 0:02:36.9]} 13... b6 {[%clk
0:02:55]} 14. f4 {[%clk 0:02:32.5]} 14... exf4 {[%clk 0:02:53.5]} 15. Bxf4
{[%clk 0:02:31.2]} 15... Nf8 {[%clk 0:02:53.3]} 16. Rf2 {[%clk 0:02:02.7]} 16...
Ne6 {[%clk 0:02:52.3]} 17. Be3 {[%clk 0:02:01.4]} 17... Nd4 {[%clk 0:02:45.7]}
18. Bxd4 {[%clk 0:01:55.5]} 18... Qxd4 {[%clk 0:02:40.4]} 19. Ref1 {[%clk
0:01:49.8]} 19... Re7 {[%clk 0:02:40.7]} 20. a3 {[%clk 0:01:43.6]} 20... Rf8
{[%clk 0:02:36.8]} 21. Qg4 {[%clk 0:01:40.9]} 21... c4 {[%clk 0:02:35.9]} 22.
Qe2 {[%clk 0:01:20.2]} 22... b5 {[%clk 0:02:28.7]} 23. dxc4 {[%clk 0:01:15.4]}
23... Qxc4 {[%clk 0:02:28]} 24. Qxc4 {[%clk 0:01:07.2]} 24... bxc4 {[%clk
0:02:28.9]} 25. Rd1 {[%clk 0:01:01.5]} 25... Rb8 {[%clk 0:02:26.1]} 26. Na4
{[%clk 0:00:53.5]} 26... Rxe4 {[%clk 0:02:25.7]} 27. Nc5 {[%clk 0:00:53.8]}
27... Rd4 {[%clk 0:02:12.8]} 28. Rdf1 {[%clk 0:00:44]} 28... Rd5 {[%clk
0:02:09.4]} 29. b4 {[%clk 0:00:38.8]} 29... cxb3 {[%clk 0:02:06.4]} 30. Nxb3
{[%clk 0:00:38.4]} 30... f5 {[%clk 0:02:07]} 31. Re2 {[%clk 0:00:31.4]} 31...
Kf7 {[%clk 0:02:00.3]} 32. g3 {[%clk 0:00:31.5]} 32... a5 {[%clk 0:01:57.6]} 33.
Kg2 {[%clk 0:00:25.2]} 33... a4 {[%clk 0:01:55.7]} 34. Nd2 {[%clk 0:00:25.5]}
34... Rb2 {[%clk 0:01:37.8]} 35. Nc4 {[%clk 0:00:24.3]} 35... Ra2 {[%clk
0:01:37.7]} 36. Rf4 {[%clk 0:00:17.4]} 36... Bf8 {[%clk 0:01:24.6]} 37. Nb6
{[%clk 0:00:16.2]} 37... Rc5 {[%clk 0:01:19.1]} 38. Rxa4 {[%clk 0:00:09.4]}
38... Rcxc2 {[%clk 0:01:19.1]} 39. Rxc2 {[%clk 0:00:09.3]} 39... Rxc2+ {[%clk
0:01:20]} 40. Kf3 {[%clk 0:00:09.6]} 40... Bc5 {[%clk 0:01:19.8]} 41. Ra7+
{[%clk 0:00:03.7]} 41... Ke6 {[%clk 0:01:19.2]} 0-1

[Event "Late-Titled-Tuesday-Blitz-April-02-2024"]
[Site "Chess.com"]
[Date "2024.04.02"]
[Round "8"]
[White "Indefatigable11"]
[Black "Romkachess"]
[Result "0-1"]
[WhiteElo "2251"]
[BlackElo "2684"]
[TimeControl "180+1"]
[EndTime "15:25:49 PDT"]
[Termination "Romkachess won by resignation"]

1. d4 {[%clk 0:03:00.9]} 1... Nf6 {[%clk 0:02:58.8]} 2. c4 {[%clk 0:03:01.2]}
2... e6 {[%clk 0:02:58.8]} 3. Nc3 {[%clk 0:03:01.4]} 3... Bb4 {[%clk 0:02:58.5]}
4. e3 {[%clk 0:03:01.9]} 4... O-O {[%clk 0:02:58.1]} 5. Bd2 {[%clk 0:03:02.1]}
5... c5 {[%clk 0:02:58.1]} 6. a3 {[%clk 0:03:01.2]} 6... Bxc3 {[%clk 0:02:55.4]}
7. Bxc3 {[%clk 0:03:01.9]} 7... cxd4 {[%clk 0:02:56.1]} 8. Bxd4 {[%clk
0:02:57.2]} 8... Nc6 {[%clk 0:02:56.6]} 9. Bc3 {[%clk 0:02:57.3]} 9... d5 {[%clk
0:02:56.9]} 10. Nf3 {[%clk 0:02:56.1]} 10... Re8 {[%clk 0:02:55.7]} 11. Bd3
{[%clk 0:02:53.9]} 11... e5 {[%clk 0:02:55.5]} 12. cxd5 {[%clk 0:02:53.2]} 12...
Nxd5 {[%clk 0:02:53.6]} 13. Bc2 {[%clk 0:02:21.7]} 13... Nxc3 {[%clk 0:02:50.2]}
14. Qxd8 {[%clk 0:02:20.2]} 14... Rxd8 {[%clk 0:02:49.9]} 15. bxc3 {[%clk
0:02:20.2]} 15... Be6 {[%clk 0:02:45.6]} 16. O-O {[%clk 0:02:19.8]} 16... f6
{[%clk 0:02:45.3]} 17. Rfd1 {[%clk 0:02:19.4]} 17... Na5 {[%clk 0:02:43.8]} 18.
Nd2 {[%clk 0:02:18.2]} 18... Rac8 {[%clk 0:02:34.7]} 19. Ne4 {[%clk 0:02:18.4]}
19... b6 {[%clk 0:02:23.6]} 20. Ba4 {[%clk 0:02:14.8]} 20... Rxd1+ {[%clk
0:01:13.1]} 21. Rxd1 {[%clk 0:02:13.1]} 21... Nc4 {[%clk 0:01:13.1]} 22. Bd7
{[%clk 0:02:07.6]} 22... Bxd7 {[%clk 0:01:08]} 23. Rxd7 {[%clk 0:02:07.5]} 23...
Nxa3 {[%clk 0:00:49.6]} 24. Nd6 {[%clk 0:02:06.7]} 24... Ra8 {[%clk 0:00:44.3]}
25. Nf5 {[%clk 0:02:03.7]} 25... g6 {[%clk 0:00:38.9]} 26. Nh6+ {[%clk
0:01:54.4]} 26... Kh8 {[%clk 0:00:38.8]} 27. Nf7+ {[%clk 0:01:54.4]} 27... Kg8
{[%clk 0:00:32.1]} 28. Nh6+ {[%clk 0:01:54.2]} 28... Kf8 {[%clk 0:00:17.6]} 29.
Rxh7 {[%clk 0:01:53.6]} 29... Rd8 {[%clk 0:00:17.8]} 30. h4 {[%clk 0:01:45.8]}
30... a5 {[%clk 0:00:15.2]} 31. Rf7+ {[%clk 0:01:44.9]} 31... Ke8 {[%clk
0:00:15.8]} 32. Rxf6 {[%clk 0:01:45.2]} 32... Rd1+ {[%clk 0:00:15.9]} 33. Kh2
{[%clk 0:01:44.7]} 33... Nc4 {[%clk 0:00:15.7]} 34. Rxg6 {[%clk 0:01:41.8]}
34... a4 {[%clk 0:00:14.6]} 35. Rg8+ {[%clk 0:01:35]} 35... Ke7 {[%clk
0:00:14.8]} 36. Ra8 {[%clk 0:01:34.1]} 36... a3 {[%clk 0:00:14.7]} 37. h5 {[%clk
0:01:34.4]} 37... Rd2 {[%clk 0:00:13.7]} 38. Nf5+ {[%clk 0:01:34.6]} 38... Kf6
{[%clk 0:00:14.1]} 39. h6 {[%clk 0:01:34]} 39... Kg6 {[%clk 0:00:14.4]} 40. Ra7
{[%clk 0:01:25.5]} 40... Kxf5 {[%clk 0:00:09.6]} 41. h7 {[%clk 0:01:24.8]} 41...
Rd8 {[%clk 0:00:10.2]} 42. Rg7 {[%clk 0:01:13.4]} 42... Rh8 {[%clk 0:00:09.6]}
43. g4+ {[%clk 0:01:12.2]} 43... Ke4 {[%clk 0:00:09.3]} 44. g5 {[%clk
0:01:06.1]} 44... a2 {[%clk 0:00:09.4]} 45. Ra7 {[%clk 0:01:04.6]} 45... Rxh7+
{[%clk 0:00:09.9]} 46. Kg2 {[%clk 0:01:03.7]} 46... Rxa7 {[%clk 0:00:09.3]} 0-1